bitfinex-derivatives/quotes_BNBF0:USTF0_20250524
["timestamp","ask_amount","ask_price","bid_price","bid_amount"]
[1748047682464,1.10985134,660.22,659.93,3.48]
[1748047682659,1.1300358,660.31,659.93,3.48]
[1748047682862,1.60887216,660.3,659.93,3.48]
[1748047683074,1.60887216,660.29,659.93,3.48]
[1748047683361,1.60887216,660.28,659.93,3.48]
[1748047683560,1.60887216,660.27,659.93,3.48]
[1748047683773,1.10993481,660.26,659.93,3.48]
[1748047683961,1.10994302,660.25,659.93,3.48]
[1748047684160,1.10994302,660.24,659.93,3.48]
[1748047684364,1.10994302,660.23,659.93,3.48]
[1748047684664,1.1300358,660.31,659.93,3.48]
[1748047684864,1.6089283,660.3,659.93,3.48]
[1748047685062,1.6089283,660.29,659.93,3.48]
[1748047685269,1.6089283,660.28,659.93,3.48]
[1748047685467,1.10997407,660.27,659.93,3.48]
[1748047685760,1.1300358,660.37,659.93,3.48]
[1748047685962,1.60895281,660.36,659.93,3.48]
[1748047686165,1.60895281,660.35,659.93,3.48]
[1748047686361,1.60895281,660.34,659.93,3.48]
[1748047686563,1.60895281,660.33,659.93,3.48]
[1748047686763,1.10999106,660.32,659.93,3.48]
[1748047686974,1.10999106,660.31,659.93,3.48]
[1748047687206,1.10999106,660.3,659.93,3.48]
[1748047687361,1.10999106,660.29,659.93,3.48]
[1748047687562,1.1300358,660.37,659.93,3.48]
[1748047687764,1.6086699,660.36,659.93,3.48]
[1748047687967,1.1300358,660.37,659.93,3.48]
[1748047688569,1.1300358,660.44,659.93,3.48]
[1748047688771,1.10951368,660.43,659.93,3.48]
[1748047689064,1.10951368,660.42,659.93,3.48]
[1748047689277,1.1300358,660.44,659.93,3.48]
[1748047689570,1.10920983,660.43,659.93,3.48]
[1748047689766,1.1300358,660.44,659.93,3.48]
[1748047690269,1.1089865,660.43,659.93,3.48]
[1748047690470,1.1300358,660.44,659.93,3.48]
[1748047690772,1.10897791,660.43,659.93,3.48]
[1748047690964,1.1300358,660.44,659.93,3.48]
[1748047691167,1.1300358,660.62,659.93,3.48]
[1748047691369,1.60721619,660.61,659.93,3.48]
[1748047691669,1.60721512,660.6,659.93,3.48]
[1748047691869,1.60721512,660.59,659.93,3.48]
[1748047692167,1.60721512,660.58,659.93,3.48]
[1748047692392,1.60721512,660.57,659.93,3.48]
[1748047692564,1.60721512,660.56,659.93,3.48]
[1748047692767,1.60721512,660.55,659.93,3.48]
[1748047692970,1.60721512,660.54,659.93,3.48]
[1748047693170,1.60713704,660.53,659.93,3.48]
[1748047693365,1.1300358,660.62,659.93,3.48]
[1748047693366,1.60713704,660.52,659.93,3.48]
[1748047693669,1.60679368,660.51,659.93,3.48]
[1748047693870,1.1084919,660.5,659.93,3.48]
[1748047694065,1.1084919,660.49,659.93,3.48]
[1748047694265,1.1084919,660.48,659.93,3.48]
[1748047694467,1.1084919,660.47,659.93,3.48]
[1748047694667,1.1300358,660.62,659.93,3.48]
[1748047694872,1.60654748,660.61,659.93,3.48]
[1748047695071,1.60654748,660.6,659.93,3.48]
[1748047695282,1.60654748,660.59,659.93,3.48]
[1748047695465,1.60706294,660.58,659.93,3.48]
[1748047695666,1.60706294,660.57,659.93,3.48]
[1748047695967,1.60706294,660.56,659.93,3.48]
[1748047696268,1.60706294,660.55,659.93,3.48]
[1748047696467,1.60706294,660.54,659.93,3.48]
[1748047696669,1.60706294,660.53,659.93,3.48]
[1748047696864,1.10832412,660.52,659.93,3.48]
[1748047697069,1.10832412,660.51,659.93,3.48]
[1748047697267,1.10832412,660.5,659.93,3.48]
[1748047697470,1.10832412,660.49,659.93,3.48]
[1748047697668,1.10832412,660.48,659.93,3.48]
[1748047697869,1.1300358,660.67,659.93,3.48]
[1748047698065,1.90944705,660.66,659.93,3.48]
[1748047698269,1.90945163,660.65,659.93,3.48]
[1748047698470,1.90945622,660.64,659.93,3.48]
[1748047698667,1.60671948,660.63,659.93,3.48]
[1748047698871,1.60671948,660.62,659.93,3.48]
[1748047699073,1.60671948,660.61,659.93,3.48]
[1748047699274,1.60669771,660.6,659.93,3.48]
[1748047699472,0.30273674,660.64,659.93,3.48]
[1748047699473,1.60669771,660.59,659.93,3.48]
[1748047699784,1.60669771,660.58,659.93,3.48]
[1748047700075,1.60669771,660.57,659.93,3.48]
[1748047700275,1.10805049,660.56,659.93,3.48]
[1748047700475,1.10805049,660.55,659.93,3.48]
[1748047700668,0.30273674,660.64,659.93,3.48]
[1748047700907,1.60621438,660.63,659.93,3.48]
[1748047701174,1.10770973,660.62,659.93,3.48]
[1748047701370,0.30273674,660.64,659.93,3.48]
[1748047701576,1.10742786,660.63,659.93,3.48]
[1748047701768,0.30273674,660.64,659.93,3.48]
[1748047701968,1.10742686,660.63,659.93,3.48]
[1748047702171,0.30273674,660.64,659.93,3.48]
[1748047706378,0.30273674,660.64,660.0,1.11429046]
[1748047709173,0.30273674,660.64,660.01,1.227]
[1748047709873,0.30273674,660.64,660.02,1.358]
[1748047710172,0.30273674,660.64,660.03,1.093]
[1748047730800,0.30273674,660.64,660.04,1.416]
[1748047735707,0.30273674,660.64,660.05,0.982]
[1748047743312,0.30273674,660.64,660.05,2.09629046]
[1748047745107,0.30273674,660.64,660.06,1.091]
[1748047746110,0.30273674,660.64,660.08,1.11429046]
[1748047748617,1.10863519,660.63,660.08,1.11429046]
[1748047748916,0.30273674,660.64,660.08,1.11429046]
[1748047749111,1.10867952,660.63,660.06,1.091]
[1748047749317,1.10879875,660.62,660.06,1.091]
[1748047749617,1.10880596,660.61,660.06,1.091]
[1748047749810,0.30273674,660.64,660.06,1.091]
[1748047750012,1.10885828,660.63,660.06,1.091]
[1748047750210,1.10885828,660.62,660.06,1.091]
[1748047750413,1.10885828,660.61,660.06,1.091]
[1748047750611,0.30273674,660.64,660.06,1.091]
[1748047750814,1.1089993,660.63,660.06,1.091]
[1748047751017,1.1089993,660.62,660.06,1.091]
[1748047751214,1.10899956,660.61,660.06,1.091]
[1748047751522,1.10918244,660.6,660.06,2.507]
[1748047751819,0.30273674,660.64,660.06,2.507]
[1748047752016,1.109174,660.63,660.06,2.507]
[1748047752217,1.109174,660.62,660.06,2.507]
[1748047752420,1.109174,660.61,660.06,2.507]
[1748047752624,1.109174,660.6,660.06,2.507]
[1748047752822,0.30273674,660.64,660.06,2.507]
[1748047753046,1.10936814,660.63,660.06,2.507]
[1748047753215,1.10936672,660.62,660.06,2.507]
[1748047753415,1.10936672,660.61,660.06,2.507]
[1748047753720,1.10936672,660.6,660.06,2.507]
[1748047753919,0.30273674,660.64,660.06,2.507]
[1748047754119,1.10956806,660.63,660.06,2.507]
[1748047754319,1.10956806,660.62,660.06,2.507]
[1748047754514,1.10956806,660.61,660.06,2.507]
[1748047754718,1.10956806,660.6,660.06,2.507]
[1748047755016,0.30273674,660.64,660.06,2.507]
[1748047755216,1.10977531,660.63,660.06,2.507]
[1748047755419,1.10977531,660.62,660.06,2.507]
[1748047755617,1.10977531,660.61,660.06,2.507]
[1748047755818,1.10977531,660.6,660.06,2.507]
[1748047756114,1.10977531,660.59,660.06,2.507]
[1748047756326,1.10977531,660.58,660.06,2.507]
[1748047756523,0.30273674,660.64,660.06,2.507]
[1748047756720,1.60980226,660.63,660.06,2.507]
[1748047757021,1.11024751,660.62,660.06,2.507]
[1748047757221,1.11024751,660.61,660.06,2.507]
[1748047757422,1.11024751,660.6,660.06,2.507]
[1748047757622,1.11024751,660.59,660.06,2.507]
[1748047757824,1.11024751,660.58,660.06,2.507]
[1748047758022,1.11024751,660.57,660.08,1.11429046]
[1748047758223,1.11084958,660.56,660.08,1.11429046]
[1748047758432,0.30273674,660.64,660.08,1.11429046]
[1748047758623,1.61070473,660.63,660.08,1.11429046]
[1748047758829,1.61070473,660.62,660.08,1.11429046]
[1748047759122,1.11086985,660.61,660.08,1.11429046]
[1748047759339,1.11086985,660.6,660.08,1.11429046]
[1748047759522,1.11086985,660.59,660.08,1.11429046]
[1748047759824,1.11086985,660.58,660.08,1.11429046]
[1748047760129,1.11086985,660.57,660.08,1.11429046]
[1748047760422,1.11086985,660.56,660.08,1.11429046]
[1748047760620,1.11145544,660.55,660.08,1.11429046]
[1748047760816,0.30273674,660.64,660.09,1.11429046]
[1748047761121,1.61159024,660.63,660.09,1.11429046]
[1748047761324,1.61159024,660.62,660.09,1.11429046]
[1748047761622,1.61159024,660.61,660.09,1.11429046]
[1748047761821,1.61159024,660.6,660.09,1.11429046]
[1748047762019,1.11145573,660.59,660.1,1.32]
[1748047762325,1.11145573,660.58,660.1,1.32]
[1748047762525,1.11150494,660.57,660.1,1.32]
[1748047762726,1.11150494,660.56,660.1,1.32]
[1748047762926,1.11150494,660.55,660.1,1.32]
[1748047763125,0.30273674,660.64,660.1,1.32]
[1748047763323,1.6116826,660.63,660.1,1.32]
[1748047763522,1.6116826,660.62,660.1,1.32]
[1748047763721,1.6116826,660.61,660.1,1.32]
[1748047763926,1.6116826,660.6,660.1,1.32]
[1748047764126,1.1115193,660.59,660.1,1.32]
[1748047764425,1.11151717,660.58,660.1,1.32]
[1748047764640,1.11151717,660.57,660.1,1.32]
[1748047764825,1.11151717,660.56,660.1,1.32]
[1748047765127,1.11151717,660.55,660.1,1.32]
[1748047765328,0.30273674,660.64,660.1,1.32]
[1748047765540,1.61167775,660.63,660.1,1.32]
[1748047765728,1.61167775,660.62,660.1,1.32]
[1748047765931,1.61167775,660.61,660.1,1.32]
[1748047766129,1.11151604,660.6,660.1,1.32]
[1748047766332,0.30273674,660.64,660.1,1.32]
[1748047766552,1.11142903,660.63,660.1,1.32]
[1748047766730,1.11142903,660.62,660.1,1.32]
[1748047767024,1.11142903,660.61,660.1,2.43429046]
[1748047767228,0.30273674,660.64,660.1,2.43429046]
[1748047767429,1.11141351,660.63,660.1,2.43429046]
[1748047767725,1.11141351,660.62,660.1,2.43429046]
[1748047767929,1.11141351,660.61,660.1,2.43429046]
[1748047768228,0.30273674,660.64,660.1,2.43429046]
[1748047768429,1.11138448,660.63,660.1,2.43429046]
[1748047768622,1.11138448,660.62,660.1,2.43429046]
[1748047768827,1.11138448,660.61,660.1,2.43429046]
[1748047769027,0.30273674,660.64,660.1,2.43429046]
[1748047769337,1.11136254,660.63,660.11,1.11429046]
[1748047769525,1.11136254,660.62,660.11,1.11429046]
[1748047769741,1.11136254,660.61,660.11,1.11429046]
[1748047769928,0.30273674,660.64,660.11,1.11429046]
[1748047770125,1.1112322,660.63,660.11,1.11429046]
[1748047770428,1.1112322,660.62,660.11,1.11429046]
[1748047770626,1.1112322,660.61,660.11,1.11429046]
[1748047770833,1.11122749,660.6,660.11,1.11429046]
[1748047771129,1.11122749,660.59,660.11,1.11429046]
[1748047771330,1.11122749,660.58,660.11,1.11429046]
[1748047771525,0.30273674,660.64,660.11,1.11429046]
[1748047771727,1.61133294,660.63,660.11,1.11429046]
[1748047771931,1.11126043,660.62,660.1,1.32]
[1748047772125,1.11126043,660.61,660.1,1.32]
[1748047772327,1.11126043,660.6,660.1,1.32]
[1748047772531,1.11126043,660.59,660.1,1.32]
[1748047772828,1.11126043,660.58,660.1,1.32]
[1748047773029,1.11126043,660.57,660.1,1.32]
[1748047773229,0.30273674,660.64,660.1,1.32]
[1748047773426,1.61138591,660.63,660.1,1.32]
[1748047773628,1.11129411,660.62,660.1,1.32]
[1748047773825,1.11129411,660.61,660.1,1.32]
[1748047774031,1.11129411,660.6,660.1,1.32]
[1748047774231,1.11129411,660.59,660.1,1.32]
[1748047774428,1.11129411,660.58,660.1,1.32]
[1748047774625,1.11129411,660.57,660.11,1.416]
[1748047774829,0.30273674,660.64,660.11,1.416]
[1748047775026,1.61138485,660.63,660.11,1.416]
[1748047775228,1.61138485,660.62,660.11,1.416]
[1748047775425,0.30273674,660.64,660.11,1.416]
[1748047775627,1.61137544,660.63,660.11,1.416]
[1748047775831,1.11128691,660.62,660.11,1.416]
[1748047776031,1.11128691,660.61,660.11,1.416]
[1748047776231,1.11128662,660.6,660.11,1.416]
[1748047776426,1.11128662,660.59,660.11,1.416]
[1748047776626,1.11128662,660.58,660.11,1.416]
[1748047776829,1.11128662,660.57,660.11,1.416]
[1748047777030,0.30273674,660.64,660.11,1.416]
[1748047777230,1.61136851,660.63,660.11,1.416]
[1748047777429,1.1112821,660.62,660.11,1.416]
[1748047777629,1.1112821,660.61,660.11,1.416]
[1748047777831,1.1112821,660.6,660.11,1.416]
[1748047778028,1.1112821,660.59,660.11,1.416]
[1748047778227,1.1112821,660.58,660.11,1.416]
[1748047778431,1.11109447,660.57,660.11,1.416]
[1748047778628,0.30273674,660.64,660.11,1.416]
[1748047778933,1.61115137,660.63,660.11,1.416]
[1748047779260,1.61115137,660.62,660.11,1.416]
[1748047779433,1.1110974,660.61,660.11,1.416]
[1748047779635,1.1110974,660.6,660.12,1.519]
[1748047779933,1.11112709,660.59,660.12,1.519]
[1748047780133,1.11112709,660.58,660.12,1.519]
[1748047780357,1.11112709,660.57,660.12,1.519]
[1748047780535,0.30273674,660.64,660.12,1.519]
[1748047780734,1.61119713,660.63,660.12,1.519]
[1748047780935,1.61119713,660.62,660.12,1.519]
[1748047781129,1.11112919,660.61,660.12,1.519]
[1748047781334,1.11112919,660.6,660.12,1.519]
[1748047781535,1.11112919,660.59,660.12,1.519]
[1748047781829,1.11112919,660.58,660.12,1.519]
[1748047782033,1.11112919,660.57,660.12,1.519]
[1748047782235,1.11112334,660.56,660.12,1.519]
[1748047782533,1.11112334,660.55,660.12,1.519]
[1748047782730,1.11112334,660.54,660.12,1.519]
[1748047782932,0.30273674,660.64,660.12,1.519]
[1748047783133,1.61119966,660.63,660.12,1.519]
[1748047783332,1.61119966,660.62,660.12,1.519]
[1748047783529,1.61119966,660.61,660.12,1.519]
[1748047783736,1.61119966,660.6,660.12,1.519]
[1748047783929,1.61119966,660.59,660.12,1.519]
[1748047784140,1.11113068,660.58,660.12,1.519]
[1748047784334,1.11113068,660.57,660.12,1.519]
[1748047784531,1.11113068,660.56,660.12,1.519]
[1748047784731,1.11113068,660.55,660.12,1.519]
[1748047785032,0.30273674,660.64,660.12,1.519]
[1748047785229,1.61113682,660.63,660.12,1.519]
[1748047785432,1.61113682,660.62,660.12,1.519]
[1748047785634,1.61113682,660.61,660.12,1.519]
[1748047785836,1.11108924,660.6,660.12,1.519]
[1748047786035,1.11108924,660.59,660.12,1.519]
[1748047786335,1.11108924,660.58,660.12,1.519]
[1748047786535,1.11108924,660.57,660.12,1.519]
[1748047786835,1.11108924,660.56,660.12,1.519]
[1748047787035,0.30273674,660.64,660.12,1.519]
[1748047787229,1.61106167,660.63,660.12,1.519]
[1748047787431,1.61106167,660.62,660.12,1.519]
[1748047787632,1.61106167,660.61,660.12,1.519]
[1748047787837,1.11100716,660.6,660.12,1.519]
[1748047788031,1.11100716,660.59,660.12,1.519]
[1748047788235,1.11100716,660.58,660.12,1.519]
[1748047788428,1.11100716,660.57,660.12,1.519]
[1748047788634,1.11100716,660.56,660.12,1.519]
[1748047788832,0.30273674,660.64,660.12,1.519]
[1748047789033,1.61105508,660.63,660.12,1.519]
[1748047789233,1.61105508,660.62,660.12,1.519]
[1748047789437,1.61104613,660.61,660.12,1.519]
[1748047789638,1.11098652,660.6,660.12,1.519]
[1748047789832,1.11098652,660.59,660.13,1.401]
[1748047790037,1.11098652,660.58,660.13,1.401]
[1748047790236,1.11098652,660.57,660.13,1.401]
[1748047790434,1.11098652,660.56,660.13,1.401]
[1748047790637,1.11098652,660.55,660.13,1.401]
[1748047790835,0.30273674,660.64,660.13,1.401]
[1748047791036,1.61107457,660.63,660.14,1.509]
[1748047791336,1.61107069,660.62,660.14,1.509]
[1748047791538,1.61107069,660.61,660.14,1.509]
[1748047791736,1.11100353,660.6,660.14,1.509]
[1748047791977,1.11100353,660.59,660.14,1.509]
[1748047792137,1.11100353,660.58,660.14,1.509]
[1748047792437,1.11100353,660.57,660.14,1.509]
[1748047792637,1.11100353,660.56,660.14,1.509]
[1748047792837,1.11100353,660.55,660.14,1.509]
[1748047793039,0.30273674,660.64,660.14,1.509]
[1748047793341,1.61108807,660.63,660.14,1.509]
[1748047793547,1.61108807,660.62,660.14,1.509]
[1748047793736,1.61108807,660.61,660.14,1.509]
[1748047793937,1.1110154,660.6,660.14,1.509]
[1748047794141,1.1110154,660.59,660.14,1.509]
[1748047794337,1.1110154,660.58,660.14,1.509]
[1748047794642,1.1109974,660.57,660.14,1.509]
[1748047794842,1.1109974,660.56,660.14,1.509]
[1748047795050,1.1109974,660.55,660.14,1.509]
[1748047795239,0.30273674,660.64,660.14,1.509]
[1748047795451,1.61105555,660.63,660.14,1.509]
[1748047795647,1.61105555,660.62,660.14,1.509]
[1748047795938,1.61105555,660.61,660.14,1.509]
[1748047796140,1.11099297,660.6,660.14,1.509]
[1748047796347,1.11098811,660.59,660.14,1.509]
[1748047796639,1.11098811,660.58,660.14,1.509]
[1748047796842,1.11098811,660.57,660.14,1.509]
[1748047797038,1.11098811,660.56,660.14,1.509]
[1748047797243,0.30273674,660.64,660.14,1.509]
[1748047797444,1.61104912,660.63,660.14,1.509]
[1748047797641,1.61104912,660.62,660.14,2.62329046]
[1748047797844,1.61104912,660.61,660.14,2.62329046]
[1748047798045,1.11098867,660.6,660.14,2.62329046]
[1748047798244,1.11100185,660.59,660.14,2.62329046]
[1748047798444,1.11100185,660.58,660.14,2.62329046]
[1748047798645,1.11100185,660.57,660.14,2.62329046]
[1748047798845,1.11100185,660.56,660.14,2.62329046]
[1748047799047,1.1300358,660.63,660.14,2.62329046]
[1748047799249,1.61132578,660.62,660.14,2.62329046]
[1748047799446,1.61132578,660.61,660.14,2.62329046]
[1748047799648,1.11125952,660.6,660.14,2.62329046]
[1748047799848,1.11125952,660.59,660.14,2.62329046]
[1748047800049,1.11125952,660.58,660.14,2.62329046]
[1748047800261,1.11125952,660.57,660.14,2.62329046]
[1748047800448,1.1300358,660.63,660.14,2.62329046]
[1748047800649,1.61131263,660.62,660.14,2.62329046]
[1748047800845,1.61131773,660.61,660.14,2.62329046]
[1748047801048,1.11125564,660.6,660.14,2.62329046]
[1748047801350,1.1112839,660.59,660.16,1.11429046]
[1748047801548,1.1112839,660.58,660.16,1.11429046]
[1748047801747,1.1112839,660.57,660.16,1.11429046]
[1748047801944,1.1112839,660.56,660.16,1.11429046]
[1748047802145,1.1300358,660.63,660.16,1.11429046]
[1748047802349,1.11128908,660.62,660.16,1.11429046]
[1748047802551,1.1300358,660.63,660.16,1.11429046]
[1748047802751,1.11124673,660.62,660.16,1.11429046]
[1748047802950,1.1300358,660.63,660.16,1.11429046]
[1748047804756,1.11029731,660.62,660.16,1.11429046]
[1748047804955,1.1300358,660.63,660.16,1.11429046]
[1748047805159,0.30273674,660.64,660.23,1.11429046]
[1748047805650,0.30273674,660.64,660.24,1.093]
[1748047807257,1.11025228,660.63,660.24,1.093]
[1748047807457,1.11025228,660.62,660.24,1.093]
[1748047807661,1.11025228,660.61,660.24,1.093]
[1748047807855,1.11025228,660.6,660.24,1.093]
[1748047808055,1.11025228,660.59,660.24,1.093]
[1748047808357,1.11033678,660.58,660.24,1.093]
[1748047808557,1.11033678,660.57,660.24,1.093]
[1748047808754,0.30273674,660.64,660.24,1.093]
[1748047808955,1.61041824,660.63,660.24,1.093]
[1748047809156,1.11036523,660.62,660.24,1.093]
[1748047809355,1.11036523,660.61,660.24,1.093]
[1748047809558,1.11036523,660.6,660.24,1.093]
[1748047809864,1.11036523,660.59,660.24,1.093]
[1748047810052,1.11036523,660.58,660.24,1.093]
[1748047810253,0.30273674,660.64,660.24,1.093]
[1748047810457,1.6104358,660.63,660.24,1.093]
[1748047810659,1.11037725,660.62,660.24,1.093]
[1748047810860,1.11037725,660.61,660.24,1.093]
[1748047811058,1.11037725,660.6,660.24,1.093]
[1748047811253,1.11037725,660.59,660.24,1.093]
[1748047811554,1.11037725,660.58,660.24,1.093]
[1748047811853,1.11037725,660.57,660.24,1.093]
[1748047812053,1.11045096,660.56,660.24,1.093]
[1748047812255,0.30273674,660.64,660.25,1.166]
[1748047812558,1.61048241,660.63,660.25,1.166]
[1748047812853,1.61048241,660.62,660.25,1.166]
[1748047813062,1.61048241,660.61,660.25,1.166]
[1748047813253,1.11045361,660.6,660.25,1.166]
[1748047813453,1.11045361,660.59,660.25,1.166]
[1748047813654,1.11045361,660.58,660.25,1.166]
[1748047813862,1.11045361,660.57,660.25,1.166]
[1748047814058,1.11045361,660.56,660.25,1.166]
[1748047814259,0.30273674,660.64,660.25,1.166]
[1748047814462,1.610476,660.63,660.25,1.166]
[1748047814660,1.610476,660.62,660.25,1.166]
[1748047814884,1.610476,660.61,660.25,1.166]
[1748047815059,1.610476,660.6,660.25,1.166]
[1748047815362,1.11043902,660.59,660.25,1.166]
[1748047815660,1.11043902,660.58,660.25,1.166]
[1748047815861,1.11043902,660.57,660.25,1.166]
[1748047816062,1.11043902,660.56,660.25,1.166]
[1748047816362,0.30273674,660.64,660.25,1.166]
[1748047816558,1.61055024,660.63,660.25,1.166]
[1748047816856,1.61055024,660.62,660.25,1.166]
[1748047817058,1.61055024,660.61,660.25,1.166]
[1748047817261,1.11051034,660.6,660.25,1.166]
[1748047817456,1.11051034,660.59,660.25,1.166]
[1748047817660,1.11051034,660.58,660.25,1.166]
[1748047817862,1.11051034,660.57,660.25,1.166]
[1748047818163,1.11051034,660.56,660.25,1.166]
[1748047818363,0.30273674,660.64,660.25,1.166]
[1748047818663,1.61059369,660.63,660.25,1.166]
[1748047818866,1.61059369,660.62,660.25,1.166]
[1748047819074,1.61059369,660.61,660.25,1.166]
[1748047819372,1.11054029,660.6,660.25,1.166]
[1748047819567,1.11054029,660.59,660.25,1.166]
[1748047819762,1.11054029,660.58,660.25,1.166]
[1748047819964,1.11054029,660.57,660.25,1.166]
[1748047820159,1.11054029,660.56,660.25,1.166]
[1748047820355,1.43277254,660.64,660.25,1.166]
[1748047820560,1.61060006,660.63,660.25,1.166]
[1748047820761,1.61060006,660.62,660.25,1.166]
[1748047821067,1.61060006,660.61,660.25,1.166]
[1748047821260,1.11054473,660.6,660.25,1.166]
[1748047821460,1.11054473,660.59,660.25,1.166]
[1748047821660,1.43277254,660.64,660.25,1.166]
[1748047821661,1.11054473,660.58,660.25,1.166]
[1748047821860,1.11054473,660.57,660.25,1.166]
[1748047822062,1.11054473,660.56,660.25,1.166]
[1748047822263,1.43277254,660.64,660.25,1.166]
[1748047822463,1.61060391,660.63,660.25,1.166]
[1748047822667,1.61060391,660.62,660.25,1.166]
[1748047822864,1.61060477,660.61,660.25,1.166]
[1748047823064,1.1105474,660.6,660.25,1.166]
[1748047823365,1.1105474,660.59,660.25,1.166]
[1748047823662,1.1105474,660.58,660.25,1.166]
[1748047823865,1.1105474,660.57,660.25,1.166]
[1748047824056,1.1105474,660.56,660.25,1.166]
[1748047824256,1.43277254,660.64,660.25,1.166]
[1748047824457,1.61067375,660.63,660.25,1.166]
[1748047824662,1.61067375,660.62,660.25,1.166]
[1748047824865,1.61067375,660.61,660.25,1.166]
[1748047825059,1.11061568,660.6,660.25,1.166]
[1748047825268,1.11061568,660.59,660.25,1.166]
[1748047825465,1.11061568,660.58,660.25,1.166]
[1748047825665,1.11061568,660.57,660.25,1.166]
[1748047825867,1.11061568,660.56,660.25,1.166]
[1748047826061,1.11061568,660.55,660.25,1.166]
[1748047826267,1.43277254,660.64,660.25,1.166]
[1748047826460,1.61068493,660.63,660.25,1.166]
[1748047826663,1.61068493,660.62,660.25,1.166]
[1748047826959,1.61068493,660.61,660.25,1.166]
[1748047827171,1.61068493,660.6,660.25,1.166]
[1748047827364,1.11062326,660.59,660.25,1.166]
[1748047827600,1.43277254,660.64,660.25,1.166]
[1748047827601,1.11062326,660.58,660.25,1.166]
[1748047827768,1.11062326,660.57,660.26,1.207]
[1748047828070,1.11062326,660.56,660.26,1.207]
[1748047828263,1.11074639,660.55,660.26,1.207]
[1748047828466,1.1300358,660.63,660.26,1.207]
[1748047828765,1.61086133,660.62,660.26,1.207]
[1748047828966,1.61086133,660.61,660.26,1.207]
[1748047829165,1.61086133,660.6,660.26,1.207]
[1748047829467,1.11076507,660.59,660.26,1.207]
[1748047829674,1.11076507,660.58,660.26,1.207]
[1748047829865,1.11076507,660.57,660.26,1.207]
[1748047830066,1.11076507,660.56,660.26,1.207]
[1748047830265,1.11076507,660.55,660.26,1.207]
[1748047830567,1.1300358,660.63,660.26,1.207]
[1748047830768,1.61099181,660.62,660.26,1.207]
[1748047830963,1.61099181,660.61,660.26,1.207]
[1748047831165,1.61099181,660.6,660.26,1.207]
[1748047831368,1.11085494,660.59,660.26,1.207]
[1748047831580,1.11085494,660.58,660.26,1.207]
[1748047831797,1.61099799,660.57,660.27,1.323]
[1748047831980,1.61114271,660.56,660.27,1.323]
[1748047832172,1.61114271,660.55,660.27,1.323]
[1748047832469,1.61114271,660.54,660.27,1.323]
[1748047832671,1.61114271,660.53,660.27,1.323]
[1748047832865,1.61114271,660.52,660.27,1.323]
[1748047833070,1.61114271,660.51,660.27,1.323]
[1748047833263,1.61110837,660.5,660.27,1.323]
[1748047833463,1.11099966,660.49,660.27,1.323]
[1748047833670,1.11099966,660.48,660.27,1.323]
[1748047833871,1.11099966,660.47,660.27,1.323]
[1748047834069,1.11099966,660.46,660.27,1.323]
[1748047834270,1.1107553,660.45,660.27,1.323]
[1748047834471,0.30273674,660.64,660.27,1.323]
[1748047834671,1.61058767,660.63,660.27,1.323]
[1748047834878,1.91333357,660.62,660.27,1.323]
[1748047835071,1.91333815,660.61,660.27,1.323]
[1748047835268,1.91334274,660.6,660.27,1.323]
[1748047835467,1.91334732,660.59,660.27,1.323]
[1748047835668,1.61058767,660.58,660.27,1.323]
[1748047835871,1.61058767,660.57,660.27,1.323]
[1748047836078,1.61058767,660.56,660.27,1.323]
[1748047836272,1.61058767,660.55,660.27,1.323]
[1748047836474,1.61058767,660.54,660.27,1.323]
[1748047836770,1.61058767,660.53,660.27,1.323]
[1748047836979,1.61058767,660.52,660.27,1.323]
[1748047837171,1.61058767,660.51,660.27,1.323]
[1748047837373,1.1109268,660.5,660.27,1.323]
[1748047837573,1.1109268,660.49,660.27,1.323]